[Event "FIDE Candidates Tournament 2022"]
[Site "Madrid"]
[Date "2022.06.17"]
[Round "1.4"]
[White "Radjabov, Teimour"]
[Black "Firouzja, Alireza"]
[Result "1/2-1/2"]
[ECO "D24"]
[WhiteElo "2753"]
[BlackElo "2804"]
[Annotator "TA"]
[PlyCount "142"]
[EventDate "2022.06.17"]
[EventType "tourn"]
[EventCountry "ESP"]
[SourceTitle "playchess.com"]
[Source "ChessBase"]
[SourceQuality "1"]
[TimeControl "40/7200:20/3600:900+30"]

{[%evp 9,142,7,39,42,37,39,43,30,45,26,36,39,37,49,35,27,20,11,21,31,31,10,14,14,24,13,36,31,26,36,29,0,16,23,10,24,12,13,9,13,13,13,95,86,77,87,91,89,91,75,74,68,54,21,22,26,29,0,0,0,0,0,0,0,0,0,0,0,0,0,60,60,60,60,60,60,60,60,60,60,60,60,60,60,60,60,60,0,60,60,60,60,60,60,60,60,60,60,60,60,60,60,60,60,60,60,60,0,60,60,60,0,60,0,60,0,60,60,60,60,60,8,8,8,8,1,1,0,0,0,0,0,0,0,0]} 1. d4 {[%emt 0:00:04]} Nf6 {[%emt 0:00:08]} 2. c4 {[%emt 0:00:06]} e6 {[%emt 0:00:08]} 3. Nf3 {[%emt 0:00:21]} d5 {[%emt 0:00:09]} 4. Nc3 {[%emt 0:00:26]} dxc4 {[%emt 0:00:19]} 5. e4 {[%emt 0:00:22][%cal Be2e4,Be4e5][%mdl 32]} b5 {[%emt 0:00:09]} (5... Bb4 $5 {[%cal Rf6e4]}) 6. e5 {[%emt 0:00:55] D24: Queen's Gambit Accepted: 3 Nf3 Nf6 4 Nc3.} Nd5 {[%emt 0:00:10]} 7. Nxb5 {[%emt 0:00:05]} Nb6 {[%emt 0:00:09]} 8. Be3 {[%emt 0:02:03] White is slightly better.} (8. Nc3 Be7 9. Be2 Nc6 10. O-O Bb7 11. Be3 Qd7 12. Rc1 g5 13. Bxg5 Rg8 14. Bxe7 Nxe7 15. Ne1 O-O-O 16. Bf3 Qxd4 17. Bxb7+ Kxb7 18. Qf3+ Nc6 19. Nc2 Qd3 20. Ne3 Nd5 {0-1 (57) Radjabov,T (2765)-Firouzja,A (2759) Paris 2021}) 8... Nc6 {[%emt 0:01:37][%cal Bb8c6,Bc6a5,Ba5b3,Bb3d2][%mdl 32]} 9. Be2 {[%emt 0:04:34]} Be7 {[%emt 0:00:37]} 10. O-O {[%emt 0:03:25]} O-O {[%emt 0:00:32]} 11. Nc3 {[%emt 0:01:20]} Rb8 {[%emt 0:01:03]} 12. a3 {[%emt 0:09:09]} Na5 {[%emt 0:02:26]} 13. Qc2 {[%emt 0:05:24]} Nd5 {[%emt 0:01:14]} 14. Rad1 {[%emt 0:08:13] [#]} Ba6 $146 {[%emt 0:01:15][%cal Bc8a6,Ba6c4,Bc4d5][%mdl 32]} ({Predecessor:} 14... Bd7 15. Nd2 Nxe3 16. fxe3 Bg5 17. Rf3 c5 18. Nde4 Be7 19. dxc5 Qc7 20. Nf6+ Bxf6 21. exf6 {1-0 (42) Gunina,V (2471)-Pichot,A (2625) Chess.com INT 2022}) 15. Bd2 {[%emt 0:16:15]} Nb3 {[%emt 0:01:49]} 16. Ne4 {[%emt 0:05:14]} Nxd2 {[%emt 0:01:15]} 17. Rxd2 {[%emt 0:00:05]} (17. Nexd2 {[#]} Rxb2 $3 {[%mdl 512]} 18. Qxb2 c3 $17) 17... Nf4 {[%emt 0:00:42]} 18. Bxc4 {[%emt 0:04:08]} Rxb2 $1 {[%emt 0:00:47]} 19. Qxb2 {[%emt 0:00:08]} Bxc4 {[%emt 0:00:06]} 20. Rc1 {[%emt 0:14:54]} Bd5 {[%emt 0:02:17]} 21. Re1 {[%emt 0:02:15]} Qa8 {[%emt 0:21:17]} 22. Qc2 {[%emt 0:01:16]} Bxa3 {[%emt 0:37:03]} 23. Nfg5 {[%emt 0:09:03][%cal Oe4f6] [#] Threatening mate with Nf6+!} Ng6 {[%emt 0:01:31] Strongly threatening ...h6.} 24. h4 $36 {[%emt 0:02:26][%cal Bh2h4,Bh4h5][%mdl 2080] White has the initiative.} (24. Qxc7 $2 h6 25. Ra1 hxg5 26. Nxg5 Qb8 27. Qxb8 (27. Nxe6 $2 fxe6 28. Qxb8 Rxb8 $19) 27... Rxb8 $19) 24... Bb4 {[%emt 0:23:39] This bishop pair is nice.} 25. h5 {[%emt 0:07:43]} Bxd2 {[%emt 0:03:42]} (25... Bxe4 $11 26. Nxe4 Ne7) 26. Qxd2 $16 {[%emt 0:02:10]} h6 {[%emt 0:03:30] Hoping for ...Ne7.} 27. hxg6 {[%emt 0:06:03][%cal Oe4f6] aiming for Nf6+! White is much more active.} hxg5 {[%emt 0:00:05]} 28. gxf7+ {[%emt 0:00:33]} Kxf7 {[%emt 0:00:18]} 29. Nxg5+ {[%emt 0:00:06]} Ke8 {[%emt 0:00:23]} 30. f3 {[%emt 0:04:17]} ({Much weaker is} 30. Qb4 Rf5 31. Qd2 Qd8 $14) 30... Kd7 {[%emt 0:02:01]} 31. Ne4 {[%emt 0:01:15]} Bxe4 {[%emt 0:01:54]} 32. Rxe4 $11 {[%emt 0:03:05][%mdl 4096] Endgame KQR-KQR} Qd5 {[%emt 0:00:28]} 33. Qb4 {[%emt 0:00:05]} Rg8 {[%emt 0:02:39]} 34. Qa4+ {[%emt 0:00:52]} Qc6 {[%emt 0:00:20]} 35. Qxa7 {[%emt 0:00:07] Black must now prevent Qa3.} Ra8 $1 {[%emt 0:00:23]} 36. Qc5 {[%emt 0:00:03] Prevents Qc1+.} Qxc5 {[%emt 0:00:26]} 37. dxc5 {[%emt 0:00:01] KR-KR} Kc6 {[%emt 0:00:43]} 38. Rg4 {[%emt 0:00:16]} Kxc5 {[%emt 0:01:35]} 39. Rxg7 {[%emt 0:00:08]} Kd5 {[%emt 0:00:19]} ({Better is} 39... Rc8 $1 $11) 40. Rxc7 $14 {[%emt 0:00:00]} Kxe5 {[%emt 0:00:00]} 41. Rf7 {[%emt 0:01:02]} Kd6 {[%emt 0:08:37]} 42. Kf2 {[%emt 0:08:16]} e5 {[%emt 0:08:14]} 43. g4 {[%emt 0:08:25]} Ke6 {[%emt 0:00:56]} 44. Rf5 {[%emt 0:03:22]} Ra3 {[%emt 0:02:35]} 45. Rf8 {[%emt 0:00:19] Kg3 is the strong threat.} Ke7 {[%emt 0:03:06]} 46. Rb8 {[%emt 0:01:21]} Kf7 {[%emt 0:02:42]} 47. Rc8 {[%emt 0:01:17]} Ke7 {[%emt 0:01:21]} 48. Rc2 {[%emt 0:00:47]} (48. Rc6 $14) 48... Kf6 {[%emt 0:01:20]} ({Black should play} 48... e4 $1 $11) 49. Re2 {[%emt 0:00:09]} Rb3 {[%emt 0:02:42]} 50. Re3 {[%emt 0:01:00]} Rb2+ {[%emt 0:03:22]} 51. Kg3 {[%emt 0:00:05]} Rc2 {[%emt 0:04:57]} 52. Ra3 {[%emt 0:00:45]} Rb2 {[%emt 0:04:11]} 53. Ra6+ {[%emt 0:08:28]} Kf7 {[%emt 0:00:27]} 54. Rh6 {[%emt 0:01:50]} Rb3 {[%emt 0:01:53]} 55. Kf2 $1 {[%emt 0:00:04]} Ra3 {[%emt 0:00:24]} 56. Rb6 {[%emt 0:00:22]} Ke7 {[%emt 0:00:53]} 57. Ke2 {[%emt 0:00:40]} Rc3 {[%emt 0:00:58]} 58. Kf2 {[%emt 0:04:27]} Ra3 {[%emt 0:00:38]} 59. Rb2 {[%emt 0:00:36]} Kf6 {[%emt 0:00:40]} 60. Re2 {[%emt 0:00:00]} Rb3 $1 {[%emt 0:00:00]} 61. Re3 {[%emt 0:00:58]} Rb2+ {[%emt 0:00:53]} 62. Kg3 {[%emt 0:00:02]} Rc2 $1 {[%emt 0:00:21]} 63. Rb3 {[%emt 0:00:07]} Ra2 {[%emt 0:00:30]} 64. Rb6+ {[%emt 0:00:04]} Kf7 {[%emt 0:00:28]} 65. g5 {[%emt 0:00:04]} ({White should try} 65. Rc6 $14) 65... Ra4 $1 $11 {[%emt 0:01:54] The position is equal.} 66. Rf6+ {[%emt 0:00:13]} Ke7 {[%emt 0:01:43]} 67. Rh6 {[%emt 0:00:09]} Kf7 {[%emt 0:02:13]} 68. Rh4 {[%emt 0:00:43]} Ra5 {[%emt 0:01:27]} 69. Kg4 {[%emt 0:00:36]} Ra4+ {[%emt 0:00:55]} 70. Kh5 {[%emt 0:00:15]} Ra3 {[%emt 0:00:44]} 71. f4 {[%emt 0:01:09]} exf4 {[%emt 0:00:11] Weighted Error Value: White=0.06 (flawless) /Black=0.07 (flawless)} 1/2-1/2

[Event "FIDE Candidates Tournament 2022"]
[Site "Madrid"]
[Date "2022.06.19"]
[Round "3.3"]
[White "Radjabov, Teimour"]
[Black "Nepomniachtchi, Ian"]
[Result "1/2-1/2"]
[ECO "E04"]
[WhiteElo "2753"]
[BlackElo "2773"]
[Annotator "TA"]
[PlyCount "59"]
[EventDate "2022.06.17"]
[EventType "tourn"]
[EventCountry "ESP"]
[SourceTitle "playchess.com"]
[Source "ChessBase"]
[SourceQuality "1"]
[TimeControl "40/7200:20/3600:900+30"]

{[%evp 23,59,13,25,19,22,24,17,6,7,5,7,0,4,4,8,7,7,10,2,0,0,0,0,0,0,0,0,0,0,0,0,0,0,0,0,0,0,0]} 1. d4 {[%emt 0:00:02]} Nf6 {[%emt 0:00:07]} 2. c4 {[%emt 0:00:06]} e6 {[%emt 0:00:05]} 3. Nf3 {[%emt 0:00:11]} d5 {[%emt 0:00:09]} 4. g3 {[%emt 0:00:19]} dxc4 {[%emt 0:00:19]} 5. Bg2 {[%emt 0:00:15]} c5 {[%emt 0:00:06]} 6. O-O {[%emt 0:03:06]} Nc6 {[%emt 0:00:21]} 7. dxc5 {[%emt 0:03:01]} Qxd1 {[%emt 0:02:27]} 8. Rxd1 {[%emt 0:01:19]} Bxc5 {[%emt 0:00:05]} 9. Nbd2 {[%emt 0:00:45]} c3 {[%emt 0:00:29]} 10. bxc3 {[%emt 0:00:05]} O-O {[%emt 0:00:07]} 11. Nb3 {[%emt 0:07:09]} Be7 {[%emt 0:00:33]} 12. Nfd4 {[%emt 0:05:26]} Bd7 {[%emt 0:00:30]} 13. Nxc6 {[%emt 0:07:18] E04: Open Catalan: 5 Nf3.} Bxc6 {[%emt 0:00:22]} 14. Bxc6 {[%emt 0:00:04]} bxc6 {[%emt 0:00:07]} 15. Be3 {[%emt 0:00:15] The position is equal.} Nd5 {[%emt 0:04:40]} 16. Bd4 {[%emt 0:00:54]} c5 {[%emt 0:03:00] [#]} 17. Nxc5 $146 {[%emt 0:03:12]} ({Predecessor:} 17. Be5 Bf6 18. Bxf6 Nxf6 19. c4 Rfc8 20. f3 Kf8 21. Rd6 Ke7 22. Ra6 Rc7 23. Nc1 {1-0 (75) Mikhalevski,V (2631)-Michalczak,T (2352) Zuerich 2009}) 17... Bxc5 {[%emt 0:11:19]} 18. Bxc5 {[%emt 0:00:11]} Rfc8 {[%emt 0:00:02]} 19. Bd4 {[%emt 0:00:36]} Nxc3 {[%emt 0:00:09]} 20. Bxc3 {[%emt 0:22:31]} Rxc3 $11 {[%emt 0:00:17][%mdl 4096] Endgame KRR-KRR} 21. Rac1 {[%emt 0:00:03]} Ra3 {[%emt 0:00:25]} 22. Rc2 {[%emt 0:01:02]} h5 {[%emt 0:03:46]} 23. Rd7 {[%emt 0:01:47]} a6 {[%emt 0:00:23]} 24. Kg2 {[%emt 0:02:52]} g6 {[%emt 0:01:05]} 25. e3 {[%emt 0:02:45]} Kg7 {[%emt 0:02:15]} 26. Rcc7 {[%emt 0:00:40]} Rf8 {[%emt 0:00:08]} 27. Rd6 {[%emt 0:00:27]} Re8 {[%emt 0:00:48]} 28. Rdd7 {[%emt 0:00:37]} Rf8 {[%emt 0:00:05]} 29. Rd6 {[%emt 0:00:12]} Re8 {[%emt 0:00:05]} 30. Rdd7 {[%emt 0:00:04] A rather calm draw.  Weighted Error Value: White=0.02 (flawless) /Black=0.00 (flawless)} 1/2-1/2

[Event "FIDE Candidates Tournament 2022"]
[Site "Madrid"]
[Date "2022.06.22"]
[Round "5.2"]
[White "Radjabov, Teimour"]
[Black "Ding, Liren"]
[Result "1/2-1/2"]
[ECO "E16"]
[WhiteElo "2753"]
[BlackElo "2806"]
[Annotator "TA"]
[PlyCount "100"]
[EventDate "2022.06.17"]
[EventType "tourn"]
[EventCountry "ESP"]
[SourceTitle "playchess.com"]
[Source "ChessBase"]
[SourceQuality "1"]
[TimeControl "40/7200:20/3600:900+30"]

{[%evp 13,100,7,14,14,16,11,21,30,32,12,19,0,14,4,10,4,2,9,38,13,32,33,17,0,0,-8,-11,-10,0,0,-14,0,0,-18,-2,0,0,-12,-13,-57,-60,-54,0,-40,0,-58,-52,-62,0,0,0,-47,-64,-43,-47,-53,-52,-59,-27,-83,-87,-148,-71,-50,-52,-132,-117,-102,0,0,0,0,0,0,0,0,0,0,0,0,0,0,0,0,0,0,0,0,0]} 1. d4 {[%emt 0:00:06]} Nf6 {[%emt 0:00:07]} 2. c4 {[%emt 0:00:04]} e6 {[%emt 0:00:05]} 3. g3 {[%emt 0:00:06]} Bb4+ {[%emt 0:00:21]} 4. Nd2 {[%emt 0:00:21]} O-O {[%emt 0:01:42]} 5. Bg2 {[%emt 0:00:41]} d5 {[%emt 0:00:26]} 6. Ngf3 {[%emt 0:00:28]} b6 {[%emt 0:01:56]} 7. O-O {[%emt 1:58:14]} Bb7 {[%emt 0:00:06]} 8. b3 {[%emt 0:00:00] E16: Queen's Indian: 4 g3 Bb7 5 Bg2 Bb4+.} Nbd7 {[%emt 0:00:09]} 9. Bb2 {[%emt 0:00:00]} Rc8 {[%emt 0:00:18]} 10. Rc1 {[%emt 0:00:00]} Qe7 {[%emt 0:00:37]} 11. e3 {[%emt 0:00:00] [#]} c5 $146 {[%emt 0:15:25]} ({Predecessor:} 11... Rfd8 12. Qe2 c5 13. a3 Bxd2 14. Nxd2 cxd4 15. exd4 Nf8 16. Rfd1 dxc4 17. Bxb7 Qxb7 18. bxc4 {½-½ (101) Le,Q (2713)-Inarkiev,E (2663) Moscow 2019}) 12. cxd5 {[%emt 0:00:00]} Bxd5 {[%emt 0:00:36]} 13. Qe2 {[%emt 0:00:00]} cxd4 {[%emt 0:14:50]} 14. Nxd4 {[%emt 0:00:00] And now Bxd5 would win.} Bxg2 {[%emt 0:02:28]} 15. Kxg2 {[%emt 0:00:00]} Ne5 {[%emt 0:00:17] Inhibits Nc6.} 16. e4 {[%emt 0:00:00]} Rfd8 {[%emt 0:22:00]} 17. Rxc8 {[%emt 0:00:00]} Rxc8 {[%emt 0:00:12]} 18. f4 {[%emt 0:00:00]} Ng6 {[%emt 0:02:24]} 19. Nc4 {[%emt 0:00:00]} Qb7 {[%emt 0:02:30]} 20. a3 {[%emt 0:00:00]} Bc5 {[%emt 0:02:16]} 21. Re1 {[%emt 0:00:00]} b5 {[%emt 0:05:24]} 22. Nd2 {[%emt 0:00:00]} a6 {[%emt 0:04:57]} 23. N2f3 {[%emt 0:00:00]} Ne7 {[%emt 0:02:30]} 24. Qd3 {[%emt 0:00:00]} h6 {[%emt 0:03:24][%cal Bh7h6,Bh6h5][%mdl 32]} 25. Re2 {[%emt 0:00:00]} Bb6 {[%emt 0:00:45]} 26. h3 {[%emt 0:00:00]} Rd8 {[%emt 0:00:47]} 27. Qc2 {[%emt 0:00:00]} Rc8 {[%emt 0:00:04]} (27... h5 $5 {[%cal Rh5h4]} 28. h4 Rc8 $11) 28. Qd3 {[%emt 0:00:00]} Rd8 {[%emt 0:03:11]} 29. Qc2 $1 {[%emt 0:00:00] Prevents Nc6.} h5 $1 {[%emt 0:01:57][%cal Oh5h4] aiming for ...h4!} 30. h4 {[%emt 0:00:00]} Ng4 {[%emt 0:01:39]} (30... Rc8 $15 31. Qd3 Nc6) 31. Qc3 $11 {[%emt 0:00:00][%cal Od4e6] [#] Nxe6! is the strong threat.} Nf6 {[%emt 0:02:52]} (31... Bxd4 $11 32. Nxd4 e5 33. fxe5 Rc8) 32. Qc2 $15 {[%emt 0:00:00]} Rc8 {[%emt 0:00:54]} 33. Qd3 {[%emt 0:00:00]} Ng4 {[%emt 0:00:43]} 34. b4 {[%emt 0:00:00]} Qd7 {[%emt 0:02:47]} 35. Rd2 {[%emt 0:00:00][%cal Od4f5]} Rc4 {[%emt 0:00:35]} 36. Qe2 {[%emt 0:00:00]} (36. Nf5 $11 {keeps the balance.} Qxd3 37. Nxe7+ Kf8 38. Rxd3) 36... Qb7 {[%emt 0:00:05]} 37. Qd3 {[%emt 0:00:00] [#]} f6 {[%emt 0:05:51]} (37... Ng6 $142 $1 38. Re2 Qd7) 38. Kh3 {[%emt 0:00:00]} Qc8 {[%emt 0:03:17] Strongly threatening ...Bxd4.} 39. e5 {[%emt 0:00:00]} (39. Kg2 $1 $15) 39... fxe5 $17 {[%emt 0:04:09]} 40. fxe5 {[%emt 0:00:00]} g6 {[%emt 0:00:00]} (40... Bxd4 $17 41. Nxd4 Nxe5) 41. Ng5 $1 $11 {[%emt 0:01:09] The position is equal.} Bxd4 {[%emt 0:22:46]} 42. Bxd4 {[%emt 0:01:37] Threatens to win with Bc5.} Qa8 {[%emt 0:05:10] ( -> ...Qh1+)} 43. Qf3 {[%emt 0:03:36] Prevents Qh1+.} Qxf3 {[%emt 0:01:22]} 44. Nxf3 {[%emt 0:00:03]} Nc6 {[%emt 0:02:11]} 45. Bc5 {[%emt 0:06:01]} Ncxe5 {[%emt 0:04:51]} 46. Nxe5 {[%emt 0:05:27]} Nxe5 {[%emt 0:00:04]} 47. Re2 {[%emt 0:00:28]} Nd3 {[%emt 0:02:09]} 48. Rxe6 {[%emt 0:01:04]} Nxc5 {[%emt 0:00:03]} 49. bxc5 {[%emt 0:00:05]} Kf7 {[%emt 0:00:02]} 50. Rxa6 {[%emt 0:00:06]} Rxc5 {[%emt 0:00:01] Weighted Error Value: White=0.08 (flawless) /Black=0.11 (very precise)} 1/2-1/2

[Event "FIDE Candidates Tournament 2022"]
[Site "Madrid"]
[Date "2022.06.23"]
[Round "6.1"]
[White "Radjabov, Teimour"]
[Black "Rapport, Richard"]
[Result "1/2-1/2"]
[ECO "B46"]
[WhiteElo "2753"]
[BlackElo "2776"]
[Annotator "TA"]
[PlyCount "80"]
[EventDate "2022.06.17"]
[EventType "tourn"]
[EventCountry "ESP"]
[SourceTitle "playchess.com"]
[Source "ChessBase"]
[SourceQuality "1"]
[TimeControl "40/7200:20/3600:900+30"]

{[%evp 11,80,39,22,15,19,16,22,18,12,15,15,25,25,14,31,21,30,21,35,45,44,42,51,8,0,0,27,0,0,0,0,0,15,0,0,0,0,0,0,0,0,-10,254,-10,-9,-10,-11,-14,-20,-17,-18,-18,-16,-16,-11,-16,0,-13,-4,-51,-49,-64,55,55,158,150,148,0,0,0,0]} 1. e4 {[%emt 0:00:02]} c5 {[%emt 0:01:15]} 2. Nf3 {[%emt 0:00:05]} e6 {[%emt 0:00:18]} 3. d4 {[%emt 0:00:06]} cxd4 {[%emt 0:00:06]} 4. Nxd4 {[%emt 0:00:05]} Nc6 {[%emt 0:00:06]} 5. Nc3 {[%emt 0:00:04]} a6 {[%emt 0:00:30]} 6. Nxc6 {[%emt 0:00:17]} bxc6 {[%emt 0:00:08]} 7. Qd3 {[%emt 0:00:04] B46: Sicilian: Taimanov: 5 Nc3 a6.} d5 {[%emt 0:00:52]} 8. Qg3 {[%emt 0:00:23]} h5 {[%emt 0:01:11]} 9. h4 {[%emt 0:00:23]} d4 {[%emt 0:00:51]} 10. Nb1 {[%emt 0:01:03]} Nf6 {[%emt 0:00:09]} 11. e5 {[%emt 0:01:32]} Ne4 {[%emt 0:00:14]} 12. Qf3 {[%emt 0:00:04]} Qd5 {[%emt 0:00:22]} 13. Bd3 {[%emt 0:02:03]} Bb4+ {[%emt 0:00:21]} 14. Kf1 {[%emt 0:01:44]} f5 {[%emt 0:00:10]} 15. exf6 {[%emt 0:00:06]} Nxf6 {[%emt 0:00:05] [#]} 16. Bg6+ $146 {[%emt 0:00:23]} ({Predecessor:} 16. c3 Bc5 17. Bg6+ Kd8 18. Nd2 dxc3 19. bxc3 e5 20. c4 Qxf3 21. gxf3 Be6 22. Kg2 {½-½ (61) Vachier Lagrave,M (2749)-Nepomniachtchi,I (2792) Zagreb 2021}) 16... Kd7 {[%emt 0:00:07]} 17. Bg5 {[%emt 0:26:58]} Rf8 {[%emt 0:17:11]} (17... Qe5 $2 18. c3 Bd6 19. Nd2 $16) 18. c3 {[%emt 0:07:42]} Bd6 {[%emt 0:12:26]} (18... Bc5 $5 {[%cal Rf6g4]}) 19. cxd4 {[%emt 0:03:27]} Qxd4 {[%emt 0:03:43]} 20. Qc3 $1 {[%emt 0:21:02]} Qd1+ {[%emt 0:06:43]} 21. Qe1 {[%emt 0:00:16]} Qxe1+ {[%emt 0:00:21]} 22. Kxe1 {[%emt 0:00:18]} Rb8 {[%emt 0:01:31][%cal Ba8b8,Bb8b2,Bb2f2,Bf2f4,Bf4g4][%mdl 32]} 23. Nd2 {[%emt 0:02:55]} Rxb2 {[%emt 0:02:49]} 24. Nc4 {[%emt 0:11:26]} Bb4+ {[%emt 0:01:54]} 25. Kf1 {[%emt 0:00:40]} Ng4 {[%emt 0:00:51]} 26. f3 {[%emt 0:02:42]} Rf2+ {[%emt 0:02:18]} 27. Kg1 {[%emt 0:00:02] [#] Dancing on a razor blade.} Bc5 $1 {[%emt 0:00:51][%csl LRa2,LRf3] ( -> ...R2xf3+)} 28. fxg4 {[%emt 0:01:52] And now Kh2 would win.} R2f4+ $1 {[%emt 0:01:20]} 29. Ne3 $1 {[%emt 0:05:23]} Bxe3+ {[%emt 0:01:16]} 30. Kh2 {[%emt 0:01:15]} Rxg4 {[%emt 0:04:31]} 31. Bxe3 {[%emt 0:08:51] Strongly threatening Bg5.} (31. Rhd1+ {is interesting.} Kc7 32. Bxe3 Rxg6 33. Rab1) 31... Rxg6 {[%emt 0:00:28]} 32. Rhd1+ {[%emt 0:00:02]} Kc7 {[%emt 0:07:49]} 33. Rab1 $1 {[%emt 0:00:53] Threatens to win with Bb6+.} Bb7 {[%emt 0:00:37]} 34. Bc5 {[%emt 0:03:52]} Re8 {[%emt 0:00:53]} 35. Bd6+ {[%emt 0:05:16]} (35. Rb2 $11) 35... Kc8 $15 {[%emt 0:00:25]} 36. Be5 {[%emt 0:00:02] Rf1 is the strong threat.} Rg4 {[%emt 0:04:25]} (36... Rf8 $1 $15 37. Rf1 Rxf1 38. Rxf1 c5 39. Rf8+ Kd7 40. Rf7+ Kc6 41. Rxg7 Rxg7 42. Bxg7 Kb5) 37. Rf1 $1 $14 {[%emt 0:01:30] Threatening mate with Rf7.} Rxh4+ {[%emt 0:07:01]} (37... c5 $1 $14) 38. Kg1 $16 {[%emt 0:00:15] Intending Rf7 and mate. White is more active.} Re4 {[%emt 0:02:45] [#]} 39. Rf7 {[%emt 0:00:16]} (39. Bh2 $1 $16) 39... Rxe5 $11 {[%emt 0:00:13]} 40. Rbxb7 {[%emt 0:00:00]} Rb5 {[%emt 0:00:00] Weighted Error Value: White=0.09 (flawless) /Black=0.11 (very precise)} 1/2-1/2

[Event "FIDE Candidates Tournament 2022"]
[Site "Madrid"]
[Date "2022.06.27"]
[Round "9.2"]
[White "Radjabov, Teimour"]
[Black "Nakamura, Hikaru"]
[Result "1-0"]
[ECO "C65"]
[WhiteElo "2753"]
[BlackElo "2760"]
[Annotator "TA"]
[PlyCount "81"]
[EventDate "2022.06.17"]
[EventType "tourn"]
[EventCountry "ESP"]
[SourceTitle "playchess.com"]
[Source "ChessBase"]
[SourceQuality "1"]
[TimeControl "40/7200:20/3600:900+30"]

{[%evp 9,81,22,9,8,24,20,14,8,19,0,0,7,18,10,28,21,25,18,94,101,85,85,84,88,99,90,112,97,126,127,126,76,145,104,124,127,113,113,149,157,159,121,118,127,118,118,97,87,214,197,262,257,270,270,260,240,374,278,613,602,600,589,783,785,701,512,514,498,483,431,898,1002,943,765]} 1. e4 {[%emt 0:00:02]} e5 {[%emt 0:00:05]} 2. Nf3 {[%emt 0:00:05]} Nc6 {[%emt 0:00:03]} 3. Bb5 {[%emt 0:00:07]} Nf6 {[%emt 0:00:04]} 4. d3 {[%emt 0:00:05]} Bc5 {[%emt 0:00:05]} 5. c3 {[%emt 0:00:06]} O-O {[%emt 0:00:08]} 6. O-O {[%emt 0:00:06] C65: Ruy Lopez: Berlin Defence (3...Nf6), unusual lines and 4 0-0 Bc5.} d5 {[%emt 0:00:04]} 7. Nbd2 {[%emt 0:00:06][%cal Bb1d2,Bd2b3,Bb3a5][%mdl 32]} dxe4 {[%emt 0:00:07]} 8. dxe4 {[%emt 0:00:02] The position is equal.} a5 {[%emt 0:00:10]} 9. Qc2 {[%emt 0:00:03]} Qe7 {[%emt 0:01:19]} 10. a4 {[%emt 0:00:22]} Na7 {[%emt 0:14:03]} 11. Be2 {[%emt 0:01:46]} Nc6 {[%emt 0:03:00]} 12. Nb3 $5 {[%emt 0:00:50][%mdl 4] [#] A promising side line.} Ba7 $146 {[%emt 0:04:38]} ({Predecessor:} 12... Bb6 13. Bg5 Nd8 14. Bh4 c6 15. Nbd2 Bc7 16. Nc4 Ne6 17. Bg3 Nf4 18. Bxf4 exf4 {½-½ (44) Maiwald,J (2426)-Zilka,S (2606) Germany 2022}) 13. Bb5 {[%emt 0:03:58]} Bg4 {[%emt 0:26:41]} (13... h6 $11) 14. Bxc6 $16 {[%emt 0:06:06]} Bxf3 {[%emt 0:15:32]} 15. gxf3 {[%emt 0:12:44]} (15. Bxb7 $6 Ng4 16. gxf3 Qh4 $11) 15... bxc6 {[%emt 0:00:45]} 16. Nxa5 {[%emt 0:01:13]} Qe6 {[%emt 0:03:15]} 17. Qe2 $1 {[%emt 0:07:49]} Nh5 {[%emt 0:09:51]} 18. b4 {[%emt 0:23:46]} Kh8 {[%emt 0:09:45] [#]} 19. Kh1 $1 {[%emt 0:01:17]} h6 {[%emt 0:03:25]} 20. Rg1 {[%emt 0:03:26]} (20. Nc4 $142) 20... f5 {[%emt 0:02:03]} (20... Rfd8 $142) 21. Rg2 {[%emt 0:08:56]} fxe4 {[%emt 0:10:33]} 22. Qxe4 {[%emt 0:02:25]} (22. fxe4 Qh3 23. Qg4 {[#]} (23. Nxc6 $2 Rxf2 24. Qxf2 Bxf2 $19) 23... Rxf2 $1 24. Bxh6 Qxg4 25. Rxg4 gxh6 $17) 22... Rf6 {[%emt 0:00:01]} 23. Be3 {[%emt 0:19:47]} Bxe3 {[%emt 0:01:15]} 24. fxe3 {[%emt 0:00:33]} Qd5 {[%emt 0:00:01]} 25. Qg4 {[%emt 0:13:08] White is more active.} Qxf3 {[%emt 0:01:00]} 26. Qxf3 {[%emt 0:00:09]} Rxf3 {[%emt 0:00:01]} 27. Re2 {[%emt 0:00:24]} (27. Nxc6 Rxe3 28. a5 e4) 27... c5 {[%emt 0:00:45]} 28. Nc6 {[%emt 0:00:16]} cxb4 {[%emt 0:00:07] Loses the game.} (28... Nf6 $16) 29. cxb4 $18 {[%emt 0:00:03]} Rf6 {[%emt 0:02:40]} (29... Rh3 {was called for.} 30. Kg1 (30. Nxe5 Ng3+ 31. Kg2 Rxh2+ 32. Kxh2 Nxe2 $16) 30... Nf6) 30. b5 {[%emt 0:02:13]} ({Don't take} 30. Nxe5 $6 Re6 $16) 30... Rd6 {[%emt 0:00:04]} 31. a5 {[%emt 0:01:46][%cal Ba4a5,Ba5a6,Ba6a7][%mdl 32]} ({Less strong is} 31. Nxe5 Rd5 32. Nc6 Rxb5 $14) 31... Nf6 {[%emt 0:00:49]} 32. a6 {[%emt 0:00:16]} (32. Nxe5 Rd5 $14) 32... Nd7 {[%emt 0:05:14]} (32... Ne4 $142 33. Rb2 (33. Nxe5 Rd5 $18) 33... Re6) 33. a7 {[%emt 0:02:07]} Kg8 $2 {[%emt 0:00:01]} (33... Kh7 34. Rc2 Nb6) 34. Rc2 {[%emt 0:00:44] White is clearly winning.} Kf7 {[%emt 0:00:23]} 35. Nb4 {[%emt 0:01:11] Against Rd5} c5 {[%emt 0:00:01]} 36. bxc6 {[%emt 0:00:08]} Nb6 {[%emt 0:00:01]} 37. e4 {[%emt 0:01:02]} Nc8 {[%emt 0:00:40]} 38. Rca2 {[%emt 0:00:06]} Ke6 {[%emt 0:00:34]} 39. Ra6 {[%emt 0:00:10]} Rd4 {[%emt 0:00:01]} (39... g6 $142 40. Kg1 h5) 40. Nd5 {[%emt 0:00:00] Black must now prevent Nc7+.} Kd6 {[%emt 0:00:00] Inhibits Nc7.} 41. Nb6 {[%emt 0:04:26] Weighted Error Value: White=0.14 (very precise) /Black=0.35} 1-0